bitfinex/quotes_ETHUSD_20210701
["timestamp","ask_amount","ask_price","bid_price","bid_amount"]
[1625131937455,0.11714319,2113.6,2113.5,10.13068246]
[1625131938205,3.19e-06,2113.6,2113.5,30.13068246]
[1625131938304,3.19e-06,2113.6,2113.5,30.29068246]
[1625131938696,3.19e-06,2113.6,2113.5,10.58735823]
[1625131939048,3.19e-06,2113.6,2113.5,10.5874631]
[1625131939147,3.19e-06,2113.6,2113.5,5.0428]
[1625131939247,3.19e-06,2113.6,2113.5,4.84842393]
[1625131939566,0.15,2114.8,2113.5,4.84842393]
[1625131939755,0.15,2114.8,2113.5,4.9615303]
[1625131940258,0.15,2114.8,2113.5,12.0560703]
[1625131940259,9.45906,2114.6,2113.5,12.0560703]
[1625131940456,0.15,2114.5,2113.5,12.0560703]
[1625131940708,0.15,2114.5,2113.6,3.5468513]
[1625131940858,0.15,2114.5,2113.8,5.01]
[1625131940956,0.15,2114.5,2113.9,5.09747781]
[1625131941894,22.09491966,2115.4,2114.1,5.01]
[1625131941895,10.4551,2115.2,2114.1,5.01]
[1625131941990,0.15,2115.1,2114.2,5.66570359]
[1625131942139,0.15,2115.1,2114.2,10.28280359]
[1625131942294,4.52646966,2115.4,2114.4,5.01]
[1625131942391,4.52646966,2115.4,2114.5,5.04860916]
[1625131942541,0.15,2115.1,2114.5,5.04860916]
[1625131942741,7.24186,2115.1,2114.5,5.04860916]
[1625131943690,0.15,2115.1,2114.5,5.04860916]
[1625131943842,0.15,2115.1,2114.5,12.14008916]
[1625131944279,0.15,2115.1,2114.7,5.01]
[1625131944429,0.15,2115.1,2114.8,4.93349839]
[1625131944627,0.15,2115.1,2114.6,5.01]
[1625131944727,0.15,2115.1,2114.7,5.23151019]
[1625131944827,0.15,2115.1,2114.5,14.1060556]
[1625131945077,0.15,2115.1,2114.7,7.09064]
[1625131945630,0.15,2115.1,2114.6,0.11303951]
[1625131945729,0.15,2115.1,2114.6,5.12303951]
[1625131946376,0.15,2115.1,2114.7,5.07921419]
[1625131946473,0.15,2115.1,2114.6,5.12303951]
[1625131946680,28.25,2115.0,2113.9,4.7276501]
[1625131946782,4.3695,2114.6,2113.9,4.7276501]
[1625131947081,4.3695,2114.6,2113.5,37.4878979]
[1625131947185,1.0146,2113.8,2113.5,11.8186]
[1625131947282,1.2404,2114.2,2113.6,5.59499584]
[1625131947389,5.06051599,2114.9,2113.6,9.99409584]
[1625131947390,0.00629826,2114.8,2113.6,9.99409584]
[1625131947477,0.1765912,2115.1,2113.6,30.17409584]
[1625131947574,0.15,2115.3,2113.6,30.17409584]
[1625131947728,0.15,2115.3,2113.7,2.35915383]
[1625131947829,0.15,2115.3,2114.4,7.09161]
[1625131947929,0.15,2115.3,2114.4,12.03021]
[1625131948625,0.15,2115.3,2114.6,5.01]
[1625131948824,0.15,2115.3,2114.6,12.10112]
[1625131950178,0.15,2115.3,2114.6,7.09112]
[1625131950429,0.15,2115.3,2114.4,12.03021]
[1625131950529,0.15,2115.3,2114.6,0.9]
[1625131951324,0.15,2115.3,2114.6,13.00135]
[1625131953736,0.15,2115.3,2114.6,7.99135]
[1625131953849,6.1195,2115.3,2114.6,0.9]
[1625131953949,11.92889837,2115.3,2114.6,0.9]
[1625131954193,0.14,2115.2,2114.6,0.9]
[1625131954303,7.09314,2115.0,2114.6,0.9]
[1625131954503,0.15,2114.9,2114.6,0.9]
[1625131957154,13.0015015,2115.6,2114.6,0.9]
[1625131957251,0.15,2115.3,2114.6,0.9]
[1625131957408,13.1515015,2115.6,2114.7,5.01]
[1625131957567,3.6958915,2115.6,2114.8,5.53950183]
[1625131957659,3.6458915,2115.6,2114.8,10.54950183]
[1625131957758,3.6458915,2115.6,2114.8,5.01]
[1625131958058,0.15,2115.6,2114.9,5.01]
[1625131958260,0.15,2115.6,2114.9,12.09974]
[1625131958358,0.15,2115.6,2114.9,7.08974]
[1625131958559,0.15,2115.6,2114.9,12.52389838]
[1625131958711,4.48262492,2116.0,2115.1,9.1069]
[1625131958808,4.48262492,2116.0,2115.1,14.47500352]
[1625131958909,0.93772152,2116.0,2115.1,14.59526329]
[1625131959061,0.93772152,2116.0,2115.2,5.01]
[1625131959312,0.93772152,2116.0,2115.3,5.01]
[1625131959410,0.93772152,2116.0,2115.4,7.08804]
[1625131959610,0.93772152,2116.0,2115.6,5.01]
[1625131959818,0.93772152,2116.0,2115.6,9.7513]
[1625131959911,0.93772152,2116.0,2115.6,4.7413]
[1625131960712,7.08857,2115.9,2115.6,4.7413]
[1625131961013,7.08857,2115.9,2115.4,1.674]
[1625131961161,7.08857,2115.9,2115.5,5.01]
[1625131961263,0.93772152,2116.0,2115.3,5.01]
[1625131961365,0.93772152,2116.0,2115.5,5.01]
[1625131961366,0.89801019,2115.8,2115.5,5.01]
[1625131961462,0.89801019,2115.8,2115.3,5.01]
[1625131961813,0.84801019,2115.8,2115.3,5.01]
[1625131961915,0.84801019,2115.8,2115.3,2.20865903]
[1625131962908,7.93627019,2115.8,2115.3,2.20865903]
[1625131963160,7.93627019,2115.8,2115.3,7.21865903]
[1625131963259,7.93627019,2115.8,2115.3,2.20865903]
[1625131963559,7.93627019,2115.8,2115.3,7.21865903]
[1625131963659,7.93627019,2115.8,2115.3,2.20865903]
[1625131963760,7.93627019,2115.8,2115.2,5.01]
[1625131963860,7.93627019,2115.8,2115.0,5.01]
[1625131964808,0.84801019,2115.8,2115.0,5.01]
[1625131965210,7.93627019,2115.8,2115.0,5.01]
[1625131966208,11.48054959,2115.8,2115.0,5.01]
[1625131966307,7.08867,2115.5,2115.0,5.01]
[1625131969752,4.39228959,2115.8,2115.0,5.01]
[1625131971006,7.0886,2115.5,2115.0,5.01]
[1625131972178,7.08812,2115.7,2115.0,8.2437]
[1625131972376,7.08812,2115.7,2115.1,5.01]
[1625131972475,7.08812,2115.7,2115.2,5.01]
[1625131973564,7.08812,2115.7,2115.0,0.9]
[1625131973723,35.28264156,2115.6,2114.2,10.7316]
[1625131973869,8.48101041,2115.4,2113.9,2.35915383]
[1625131973968,8.48101041,2115.4,2113.7,21.2051]
[1625131973969,6.36,2115.2,2113.7,21.2051]
[1625131974068,6.36,2115.2,2114.1,20.0]
[1625131974069,0.28361086,2115.1,2114.1,20.0]
[1625131974166,3.54608,2114.9,2114.1,20.0]
[1625131974264,4.63618329,2115.1,2114.2,0.08]
[1625131974413,3.6956721,2115.1,2113.7,21.2051]
[1625131974518,5.7328821,2115.0,2113.8,2.37265386]
[1625131974664,3.6956721,2115.1,2113.8,2.37265386]
[1625131974766,4.7397721,2115.1,2113.8,2.37265386]
[1625131974874,7.09191,2114.6,2113.8,2.37265386]
[1625131975070,10.86411,2114.6,2113.8,2.37265386]
[1625131975849,10.86411,2114.6,2113.9,4.89828415]
[1625131975950,10.86411,2114.6,2113.9,5.8318149]
[1625131976103,10.86411,2114.6,2113.7,4.9861225]
[1625131976203,10.86411,2114.6,2113.6,3.70038483]
[1625131976404,10.86411,2114.6,2113.5,7.20254366]
[1625131976503,11.01411,2114.6,2113.5,7.20254366]
[1625131976605,11.01411,2114.6,2113.4,0.95482331]
[1625131976705,7.0939444,2114.5,2113.3,5.16569321]
[1625131976812,8.1067444,2114.5,2113.3,5.16569321]
[1625131976907,0.15,2114.4,2113.3,5.16569321]
[1625131977155,7.09401,2114.1,2113.3,12.25942321]
[1625131977258,7.09401,2114.1,2113.3,9.46638386]
[1625131978099,0.15,2114.4,2113.3,9.46638386]
[1625131978249,10.6407369,2114.2,2113.3,9.46638386]
[1625131978902,10.5907369,2114.2,2113.3,9.46638386]
[1625131979000,10.5907369,2114.2,2113.3,2.37265386]
[1625131980160,10.5907369,2114.2,2113.4,11.1092389]
[1625131980611,10.5907369,2114.2,2113.4,3.70307963]
[1625131980711,10.5907369,2114.2,2113.6,5.01]
[1625131981163,10.5907369,2114.2,2113.4,5.01]
[1625131981263,10.5907369,2114.2,2113.5,5.01]
[1625131981565,10.5907369,2114.2,2113.7,5.01]
[1625131981762,10.5907369,2114.2,2113.3,10.36649386]
[1625131981862,10.5907369,2114.2,2113.5,5.01]
[1625131983300,9.45797,2114.4,2113.5,5.01]
[1625131983401,9.45797,2114.4,2113.5,7.38265386]
[1625131985198,9.45797,2114.4,2113.5,14.47587386]
[1625131986110,3.546715,2114.6,2113.8,20.0]
[1625131986207,9.45752,2115.0,2113.8,24.9038]
[1625131986357,3.5460702,2115.1,2114.4,0.47]
[1625131986454,3.5460702,2115.1,2114.4,4.7847]
[1625131986661,3.5460702,2115.1,2114.6,5.01]
[1625131986757,6.85,2115.3,2114.6,5.01]
[1625131987509,11.8214,2115.4,2114.6,5.01]
[1625131987710,3.5454459,2115.6,2114.6,5.01]
[1625131987711,3.5454459,2115.6,2114.7,5.69179394]
[1625131987809,0.15,2115.7,2114.7,5.69179394]
[1625131987959,6.85,2115.8,2114.7,5.69179394]
[1625131987960,6.85,2115.8,2114.9,9.9101]
[1625131989296,6.85,2115.8,2114.9,4.9001]
[1625131989447,7.0903,2115.5,2114.9,4.9001]
[1625131990497,7.0903,2115.5,2114.8,7.90811]
[1625131990796,7.0903,2115.5,2115.0,5.01]
[1625131991504,4.48866966,2115.7,2115.0,5.01]
[1625131991655,11.57833966,2115.7,2115.0,5.01]
[1625131992455,10.6348177,2115.7,2115.0,5.01]
[1625131992557,10.6348177,2115.7,2114.9,5.01]
[1625131992706,10.6348177,2115.7,2115.0,0.9]
[1625131993405,7.08967,2115.7,2115.0,0.9]
[1625131993505,6.85,2115.8,2115.0,0.9]
[1625131993904,6.85,2115.8,2115.0,5.91]
[1625131994004,6.85,2115.8,2115.0,0.9]
[1625131994303,13.93939,2115.8,2115.0,5.91]
[1625131994406,13.93939,2115.8,2115.0,0.9]
[1625131994607,13.93939,2115.8,2115.1,5.01]
[1625131994708,13.93939,2115.8,2115.1,8.5842]
[1625131994810,13.93939,2115.8,2115.1,3.5742]
[1625131995509,13.93939,2115.8,2115.1,10.66314]
[1625131995510,6.85,2115.8,2115.1,10.66314]
[1625131996855,6.85,2115.8,2115.1,3.5742]
[1625131998256,6.85,2115.8,2115.1,9.09144238]
[1625131998462,0.15,2116.1,2115.3,5.01]
[1625131998560,7.23846,2116.1,2115.3,12.09816]
[1625131999074,0.15,2116.1,2115.4,5.66510448]
[1625131999175,3.96,2116.6,2115.4,6.05486525]
[1625131999323,3.96,2116.6,2115.7,24.3216]
[1625131999425,3.96,2116.6,2115.9,5.01]
[1625131999575,10.1668,2116.9,2116.0,5.28025319]
[1625131999723,31.64409373,2117.2,2116.0,5.28025319]
[1625131999827,10.73929373,2117.2,2116.4,7.08507]
[1625131999923,10.73929373,2117.2,2116.5,4.95258637]
[1625132000020,0.51309373,2117.2,2116.5,4.888281]
[1625132000124,6.85,2117.3,2116.5,2.08837967]
[1625132000224,6.85,2117.3,2116.4,11.90297]
[1625132000475,6.85,2117.3,2116.4,4.8179]
[1625132000728,6.85,2117.3,2116.6,5.01]
[1625132000825,6.85,2117.3,2116.8,7.08355]
[1625132001680,0.15,2117.8,2116.8,7.08355]
[1625132002036,5.80690563,2118.1,2117.0,5.01]
[1625132002185,7.0,2118.2,2117.0,9.0864]
[1625132002278,7.0,2118.2,2117.0,4.0764]
[1625132002379,7.0,2118.2,2117.2,5.01]
[1625132002534,0.15,2118.2,2117.2,5.01]
[1625132002709,0.15,2118.2,2117.2,10.43993676]
[1625132003313,0.15,2118.2,2117.2,5.01]
[1625132003764,0.15,2118.2,2117.2,10.61551228]
[1625132003866,0.15,2118.2,2117.2,17.69752228]
[1625132004115,0.15,2118.2,2117.2,12.09201]
[1625132004570,0.15,2118.2,2117.2,32.09201]
[1625132004670,0.15,2118.7,2117.4,20.0]
[1625132004768,32.0154,2118.9,2117.3,5.77084691]
[1625132004769,32.0154,2118.9,2117.5,5.40441537]
[1625132004868,0.1,2118.7,2117.7,5.01]
[1625132004988,10.8207,2118.9,2117.7,5.01]
[1625132005123,0.15,2118.7,2117.7,5.01]
[1625132005325,0.15,2118.7,2117.8,5.01]
[1625132005425,23.6085241,2119.2,2117.8,5.01]
[1625132005529,0.15,2118.7,2117.9,5.48439182]
[1625132005627,20.068,2119.2,2117.9,5.48439182]
[1625132005725,10.0649,2119.2,2118.1,5.01]
[1625132005826,0.16117353,2119.3,2118.1,10.0528]
[1625132007227,0.16117353,2119.3,2118.4,7.0778]
[1625132007374,5.724871,2119.3,2118.3,2.5234]
[1625132007632,0.18,2119.2,2118.1,5.01]
[1625132007778,0.18,2119.2,2117.6,9.43967]
[1625132007779,0.15,2119.1,2117.6,9.43967]
[1625132007876,1.14874223,2119.0,2117.7,5.1275762]
[1625132008026,2.10013887,2119.0,2117.7,5.10243638]
[1625132008125,0.15,2118.9,2117.7,5.10243638]
[1625132008224,1.12981352,2118.8,2117.7,5.10243638]
[1625132008474,0.15,2118.7,2117.7,5.10243638]
[1625132009376,0.15,2118.7,2117.9,5.01]
[1625132009483,0.15,2118.7,2118.0,5.13757285]
[1625132009631,0.15,2118.7,2118.0,5.02228543]
[1625132010229,0.15,2118.7,2118.2,5.01]
[1625132010434,0.15,2118.7,2118.2,10.05799321]
[1625132010585,0.15,2118.7,2118.3,8.96467358]
[1625132010734,0.01117353,2119.3,2118.3,8.96467358]
[1625132010835,0.16117353,2119.3,2118.5,5.01]
[1625132011083,0.16117353,2119.3,2118.5,10.04226258]
[1625132012018,0.16117353,2119.3,2118.5,10.94226258]
[1625132013022,0.16117353,2119.3,2118.5,5.93226258]
[1625132013574,0.16117353,2119.3,2118.2,5.25467929]
[1625132013727,28.47271559,2119.2,2117.9,5.09491667]
[1625132014013,5.01,2119.0,2117.6,4.98411277]
[1625132014065,0.21870345,2118.9,2117.6,4.98411277]
[1625132014168,0.36870345,2118.9,2117.6,4.98411277]
[1625132014272,7.08139,2118.6,2117.6,4.98411277]
[1625132014369,0.15,2118.5,2117.6,4.98411277]
[1625132015019,0.15,2118.5,2117.5,10.783]
[1625132015622,0.15,2118.5,2117.7,5.01]
[1625132015922,1.87646966,2118.5,2117.3,15.177]
[1625132016018,1.87646966,2118.5,2117.3,10.826]
[1625132016121,1.87646966,2118.5,2117.6,5.01]
[1625132016275,1.87646966,2118.5,2117.3,10.826]
[1625132016426,0.06,2118.4,2117.3,10.826]
[1625132016526,5.66612239,2118.4,2117.2,10.8641]
[1625132016624,0.15,2118.3,2117.2,10.8641]
[1625132016925,0.15,2118.3,2117.1,11.79765]
[1625132017475,7.39177641,2118.3,2117.2,7.08182]
[1625132017573,7.23224,2118.3,2117.2,7.08182]
[1625132018429,7.23224,2118.3,2117.3,5.05453531]
[1625132018563,7.23224,2118.3,2117.0,5.39903175]
[1625132018663,7.23224,2118.3,2117.1,5.01]
[1625132018762,0.14,2118.2,2117.2,10.1989763]
[1625132018913,12.09269,2118.1,2117.2,5.1889763]
[1625132019011,0.15,2118.0,2117.2,5.1889763]
[1625132019464,0.15,2118.0,2117.0,12.13018454]
[1625132019563,0.15,2118.0,2117.0,5.04785454]
[1625132019915,0.15,2118.0,2117.0,12.13019454]
[1625132020364,8.15,2118.0,2117.0,12.13019454]
[1625132020770,0.15,2118.0,2117.0,12.13019454]
[1625132020870,0.15,2118.0,2117.2,5.01]
[1625132020970,0.15,2118.0,2117.3,4.9858534]
[1625132021722,13.93226,2118.2,2117.3,4.9858534]
[1625132021827,6.85,2118.2,2117.5,5.01]
[1625132021925,6.85,2118.2,2117.6,5.82514107]
[1625132022222,6.85,2118.2,2117.8,5.01]
[1625132022328,6.85,2118.2,2117.9,5.45224363]
[1625132022525,6.85,2118.2,2118.1,18.36]
[1625132022626,6.85,2118.2,2118.1,8.5002]
[1625132022726,6.85,2118.2,2118.1,13.37032909]
[1625132022822,6.85,2118.2,2118.1,13.37019188]
[1625132022921,6.85,2118.2,2118.1,8.5002]
[1625132023527,11.0,2118.9,2118.1,8.5002]
[1625132023629,11.0,2118.9,2118.4,7.07761]
[1625132023728,11.0,2118.9,2118.5,4.8908244]
[1625132023827,11.0,2118.9,2118.4,7.07761]
[1625132023926,11.0,2118.9,2118.5,5.08229167]
[1625132024027,11.0,2118.9,2118.4,7.07761]
[1625132024683,11.0,2118.9,2118.5,4.9335906]
[1625132025128,11.0,2118.9,2118.5,5.00175851]
[1625132025620,11.0,2118.9,2118.4,7.07761]
[1625132025720,11.0,2118.9,2118.3,1.1728]
[1625132025983,11.0,2118.9,2118.3,6.07803125]
[1625132026073,11.0,2118.9,2118.3,1.1728]
[1625132026223,11.0,2118.9,2118.0,5.56309132]
[1625132026374,11.0,2118.9,2118.2,5.01]
[1625132026522,11.0,2118.9,2118.3,4.91503553]
[1625132026722,11.0,2118.9,2118.5,5.01]
[1625132026825,11.0,2118.9,2118.5,8.5474]
[1625132026977,11.0,2118.9,2118.5,13.51592652]
[1625132027546,11.0,2118.9,2118.7,20.0]
[1625132027641,11.0,2118.9,2118.8,12.3]
[1625132027790,11.0,2118.9,2118.8,22.24327994]
[1625132027888,9.2001,2118.9,2118.8,22.24327994]
[1625132028093,7.73455,2118.9,2118.8,34.25899994]
[1625132028393,7.73455,2118.9,2118.8,29.35899994]
[1625132028552,0.01117353,2119.3,2119.0,20.0]
[1625132028648,0.01117353,2119.3,2119.2,20.0]
[1625132028792,0.01117353,2119.3,2119.2,30.67411893]
[1625132029322,0.01117353,2119.3,2119.2,40.10413893]
[1625132029413,0.01117353,2119.3,2119.2,48.10413893]
[1625132029513,0.57026893,2120.0,2119.3,28.25]
[1625132029622,0.57026893,2120.0,2119.9,20.0]
[1625132029829,0.57026893,2120.0,2119.9,29.02371702]
[1625132029930,0.57026893,2120.0,2119.9,0.64938771]
[1625132029931,0.58146488,2120.0,2119.9,0.64938771]
[1625132030127,0.58146488,2120.0,2119.9,5.65938771]
[1625132030380,0.58146488,2120.0,2119.9,10.47178759]
[1625132030477,0.58146488,2120.0,2119.9,5.65938771]
[1625132030578,0.58146488,2120.0,2119.9,10.60665641]
[1625132030679,0.58146488,2120.0,2119.9,10.61364171]
[1625132030877,0.58146488,2120.0,2119.9,10.50815806]
[1625132031132,0.58146488,2120.0,2119.9,10.54008625]
[1625132031228,0.58146488,2120.0,2119.9,12.81130771]
[1625132031329,0.58146488,2120.0,2119.9,17.56696217]
[1625132031428,0.58146488,2120.0,2119.9,12.73130771]
[1625132031681,0.58146488,2120.0,2119.9,5.65938771]
[1625132031779,0.58146488,2120.0,2119.9,0.64938771]
[1625132031931,0.58146488,2120.0,2119.8,1.4874]
[1625132032040,0.58146488,2120.0,2119.8,2.6433]
[1625132032144,0.58146488,2120.0,2119.9,4.92374776]
[1625132032292,0.58146488,2120.0,2119.9,0.024]
[1625132032392,0.58146488,2120.0,2119.9,4.88165692]
[1625132033045,0.58146488,2120.0,2119.9,0.224]
[1625132033246,0.58146488,2120.0,2119.9,0.024]
[1625132033649,12.3,2119.9,2119.3,0.27927955]
[1625132033801,0.58146488,2120.0,2119.4,5.01]
[1625132033902,0.58146488,2120.0,2119.2,3.193]
[1625132033997,0.58146488,2120.0,2119.2,23.193]
[1625132034096,0.58146488,2120.0,2119.2,24.3243]
[1625132034310,0.58146488,2120.0,2119.3,0.2]
[1625132034614,0.58146488,2120.0,2119.4,0.00692305]
[1625132035116,0.58146488,2120.0,2119.5,12.08394]
[1625132035318,0.58146488,2120.0,2119.6,5.01]
[1625132035465,0.58146488,2120.0,2119.7,5.01]
[1625132035615,0.58146488,2120.0,2119.6,5.01]
[1625132035714,0.58146488,2120.0,2119.5,12.18461712]
[1625132036065,0.58146488,2120.0,2119.6,3.1147]
[1625132036167,0.58146488,2120.0,2119.6,3.0347]
[1625132037398,0.58146488,2120.0,2119.7,5.11103113]
[1625132037505,0.58146488,2120.0,2119.7,7.07337]
[1625132037599,0.58146488,2120.0,2119.8,5.10981015]
[1625132037699,0.58146488,2120.0,2119.7,7.07337]
[1625132038148,0.58146488,2120.0,2119.8,5.02125358]
[1625132039148,0.58146488,2120.0,2119.7,7.13337]
[1625132039349,0.58146488,2120.0,2119.8,5.12778007]
[1625132039550,0.58146488,2120.0,2119.7,7.07337]
[1625132039650,0.58146488,2120.0,2119.9,0.06]
[1625132039949,0.58146488,2120.0,2119.7,7.07337]
[1625132040806,0.58146488,2120.0,2119.6,4.2654]
[1625132040953,0.58146488,2120.0,2119.6,3.0347]
[1625132041152,0.58146488,2120.0,2119.4,5.01692305]
[1625132041256,0.58146488,2120.0,2119.5,5.01]
[1625132041557,0.58146488,2120.0,2119.4,0.00692305]
[1625132041906,0.15,2119.9,2119.4,0.00692305]
[1625132042105,5.16,2119.9,2119.4,0.00692305]
[1625132042215,5.16,2119.9,2119.4,3.05e-06]
[1625132042311,10.79794891,2119.8,2119.4,3.05e-06]
[1625132042614,10.79794891,2119.8,2118.9,0.00611202]
[1625132042615,7.079,2119.3,2118.9,0.00611202]
[1625132042709,12.3538117,2119.3,2118.9,0.00611202]
[1625132042812,5.01,2119.1,2118.9,0.00611202]
[1625132042961,0.33,2119.2,2118.9,0.00611202]
[1625132043105,0.15,2119.2,2118.9,0.00611202]
[1625132043459,5.16,2119.2,2118.9,0.00611202]
[1625132043558,5.01,2119.1,2118.9,0.00611202]
[1625132043666,0.06,2119.1,2118.9,0.00611202]
[1625132043758,28.4,2119.0,2118.9,0.90611202]
[1625132044832,0.15,2119.0,2118.9,0.90611202]
[1625132044948,5.5,2118.9,2117.9,0.01220904]
[1625132045045,7.55,2119.0,2118.0,3.53863]
[1625132045046,0.15,2119.0,2118.0,3.53863]
[1625132045140,3.9,2119.2,2118.5,7.07695]
[1625132045288,0.15,2119.3,2118.5,11.98295]
[1625132045385,5.16,2119.3,2118.5,11.98295]
[1625132045625,5.16,2119.3,2118.5,4.906]
[1625132045727,0.15,2119.3,2118.5,4.906]
[1625132046680,0.15,2119.3,2118.6,5.15075179]
[1625132046983,0.00611202,2119.4,2118.6,5.15075179]
[1625132046984,0.00611202,2119.4,2118.8,5.01]
[1625132047131,0.00611202,2119.4,2118.9,5.06339238]
[1625132047228,0.00611202,2119.4,2118.8,5.01]
[1625132047333,0.00611202,2119.4,2118.6,5.51849162]
[1625132047429,0.00611202,2119.4,2118.8,5.01]
[1625132047532,0.00611202,2119.4,2118.9,5.41903429]
[1625132047636,0.00611202,2119.4,2119.0,7.07538]
[1625132047731,0.00611202,2119.4,2119.1,5.28907381]
[1625132048362,0.00611202,2119.4,2119.3,16.26]
[1625132048465,0.00611202,2119.4,2119.3,5.01]
[1625132048564,0.00611202,2119.4,2119.3,5.05]
[1625132049616,0.00611202,2119.4,2119.3,10.29399008]
[1625132049764,0.00611202,2119.4,2119.3,11.23399008]
[1625132049868,0.00611202,2119.4,2119.3,18.30818008]
[1625132049970,2.02e-06,2119.4,2119.3,38.30818008]
[1625132052038,2.02e-06,2119.4,2119.3,18.30818008]
[1625132052238,2.02e-06,2119.4,2119.3,38.30818008]
[1625132053729,2.02e-06,2119.4,2119.3,39.20818008]
[1625132054379,2.02e-06,2119.4,2119.3,13.25818008]
[1625132054629,2.02e-06,2119.4,2119.3,8.01419]
[1625132055275,2.02e-06,2119.4,2119.3,7.97419]
[1625132055579,2.02e-06,2119.4,2119.3,0.9]
[1625132057235,21.40000202,2119.4,2118.5,9.43392]
[1625132057334,5.76661491,2119.3,2118.2,4.71715]
[1625132057432,5.93058124,2119.3,2118.2,4.71715]
[1625132057530,5.93058124,2119.3,2117.9,3.55116904]
[1625132057531,0.15,2119.2,2117.9,3.55116904]
[1625132057681,0.29471016,2119.1,2117.9,3.55116904]
[1625132057780,7.07926,2118.9,2118.0,7.07888]
[1625132057929,5.51156239,2118.8,2118.0,7.07888]
[1625132058028,5.66156239,2118.8,2118.0,7.07888]
[1625132058282,9.24153803,2118.9,2118.1,20.25]
[1625132058385,2.16227803,2118.9,2118.1,20.25]
[1625132058530,2.16227803,2118.9,2118.1,24.6387]
[1625132058625,2.16227803,2118.9,2118.1,25.57991645]
[1625132058731,2.16227803,2118.9,2118.1,24.6387]
[1625132059143,2.16227803,2118.9,2118.1,34.07627]
[1625132059198,12.73425952,2119.4,2118.1,34.07627]
[1625132059297,12.73425952,2119.4,2118.3,5.01]
[1625132059551,0.14,2119.3,2118.3,5.01]
[1625132059650,3.55,2119.3,2118.3,5.01]
[1625132059848,5.45371105,2119.2,2118.3,5.01]
[1625132060195,0.15,2119.2,2118.3,5.01]
[1625132060298,7.07918,2118.9,2118.3,5.01]
[1625132060500,0.15,2118.8,2118.3,5.01]
[1625132061152,0.15000202,2119.4,2118.3,5.01]
[1625132061707,5.45209474,2119.4,2118.3,5.01]
[1625132061807,0.15000202,2119.4,2118.3,5.01]
[1625132061960,5.48020276,2119.4,2118.3,5.01]
[1625132062056,5.43780409,2119.4,2118.3,5.01]
[1625132062157,0.15000202,2119.4,2118.3,5.01]
[1625132062311,5.45571124,2119.4,2118.3,12.08802]
[1625132062758,0.15000202,2119.4,2118.3,12.08802]
[1625132062958,0.15000202,2119.4,2118.3,15.62641]
[1625132063060,5.45242948,2119.4,2118.3,8.54839]
[1625132063267,0.15000202,2119.4,2118.8,7.0766]
[1625132064713,7.22765202,2119.4,2118.5,14.44569]
[1625132064806,5.72597833,2119.3,2118.3,0.9]
[1625132064903,5.90597833,2119.3,2118.3,0.9]
[1625132065002,0.15,2119.2,2118.3,0.9]
[1625132065104,5.01,2119.1,2118.3,0.9]
[1625132065202,5.8441,2119.2,2118.3,0.9]
[1625132065305,0.15,2119.0,2118.2,0.11284209]
[1625132065406,5.3775801,2119.1,2118.2,0.11284209]
[1625132065503,0.15,2118.9,2118.2,0.11284209]
[1625132065605,2.5,2118.8,2118.2,0.11284209]
[1625132065805,2.65,2118.8,2118.2,0.11284209]
[1625132067602,2.65,2118.8,2118.2,7.19138209]
[1625132069932,2.65,2118.8,2118.2,7.07854]
[1625132070814,2.65,2118.8,2117.9,0.01220904]
[1625132071810,2.5,2118.8,2118.0,3.53884]
[1625132072015,3.5,2119.2,2118.1,0.14]
[1625132072164,3.5,2119.2,2118.6,7.07736]
[1625132072315,5.34753867,2119.3,2118.6,7.07736]
[1625132072458,0.01119595,2119.3,2118.6,7.07736]
[1625132073019,0.01119595,2119.3,2118.3,9.43663]
[1625132073167,7.23927595,2119.3,2118.1,7.07915]
[1625132073315,5.79132506,2119.2,2118.1,7.07915]
[1625132073417,0.15,2119.1,2118.1,7.07915]
[1625132074109,0.01119595,2119.3,2118.1,27.07915]
[1625132074206,0.01119595,2119.3,2118.1,7.07915]
[1625132074358,0.01119595,2119.3,2118.2,7.75451199]
[1625132074456,0.01119595,2119.3,2118.4,3.53857]
[1625132074658,0.9474529,2119.3,2118.6,5.01]
[1625132074807,0.01119595,2119.3,2118.6,5.01]
[1625132075455,0.01119595,2119.3,2118.6,5.12281812]
[1625132075708,0.01119595,2119.3,2118.8,7.07697]
[1625132075807,0.01119595,2119.3,2118.6,5.12281812]
[1625132077200,0.01119595,2119.3,2118.9,7.07666]
[1625132078152,0.01119595,2119.3,2118.9,10.81456]
[1625132079055,0.01119595,2119.3,2118.9,3.7379]
[1625132079202,0.01119595,2119.3,2118.8,9.43513]
[1625132080289,0.01119595,2119.3,2118.6,5.12281812]
[1625132081390,0.01119595,2119.3,2118.6,12.20025812]
[1625132084100,0.01119595,2119.3,2118.6,0.11281812]
[1625132084248,0.23,2119.2,2118.6,0.11281812]
[1625132084347,7.07885,2119.1,2118.6,0.11281812]
[1625132084548,7.22885,2119.1,2118.6,0.11281812]
[1625132086611,0.15,2119.1,2118.6,0.11281812]
[1625132087859,0.15,2119.1,2118.6,1.05843811]
[1625132088162,0.15,2119.1,2118.6,0.11281812]
[1625132088260,0.15,2119.1,2118.6,7.19071812]
[1625132088593,0.15,2119.1,2118.6,0.11281812]
[1625132088843,5.1946,2119.1,2118.6,0.11281812]
[1625132089148,0.16,2119.0,2118.6,0.11281812]
[1625132089251,7.0791,2118.9,2118.6,0.11281812]
[1625132089348,22.3497194,2119.2,2118.6,0.11281812]
[1625132089349,20.9779194,2119.2,2118.6,0.11281812]
[1625132089550,12.9779194,2119.2,2118.6,0.11281812]
[1625132089701,3.5394594,2119.2,2118.6,0.11281812]
[1625132090401,0.01119595,2119.3,2118.6,0.11281812]